fUSD/lending_fUSD_20260202
["ID","MTS","AMOUNT","RATE_DAILY","PERIOD"]
[404238494,1769990401381,294.47,0.00010382,2]
[404238495,1769990401412,205.53,0.00010382,2]
[404238513,1769990692029,855.6,0.00021,30]
[404238516,1769990841150,400.0,0.000146,5]
[404238517,1769990843281,800.0,0.000147,5]
[404238518,1769990845324,1200.0,0.000148,5]
[404238519,1769990852129,1700.0,0.000149,5]
[404238526,1769991001883,500.0,0.00010327,2]
[404238536,1769991032789,-416.94133164,0.00013086,2]
[404238539,1769991032799,-157.25535339,0.00013086,2]
[404238542,1769991032809,-179.72040388,0.00013086,2]
[404238544,1769991032818,-280.81313106,0.00013086,2]
[404238547,1769991032828,-403.96653781,0.00013086,2]
[404238550,1769991032837,-1200.0,0.00013958,2]
[404238552,1769991032847,-2271.3714228,0.00013959,2]
[404238554,1769991032858,-305.85181942,0.00013959,2]
[404238556,1769991032872,-2132.72675778,0.00013959,2]
[404238557,1769991032881,-300.0,0.0001399,2]
[404238558,1769991032891,-56.06812121,0.00013991,2]
[404238559,1769991032902,-1201.88452238,0.00013991,2]
[404238560,1769991032914,-999.0,0.00013991,2]
[404238561,1769991032925,-369.78735641,0.00013991,2]
[404238562,1769991032938,-79.88290749,0.00013997,2]
[404238563,1769991032971,-220.11709251,0.00013997,2]
[404238564,1769991032981,-324.77,0.0001422,2]
[404238565,1769991032991,-120.98140405,0.0001436,2]
[404238566,1769991033003,-29.01859595,0.0001436,2]
[404238567,1769991033012,-500.0,0.00014373,2]
[404238568,1769991033022,-500.0,0.00014373,2]
[404238569,1769991033031,-500.0,0.00014373,2]
[404238570,1769991033040,-500.0,0.00014373,2]
[404238571,1769991033049,-500.0,0.00014373,2]
[404238572,1769991033059,-11782.54,0.00014392,2]
[404238573,1769991033068,-872.68,0.00014429,2]
[404238574,1769991033077,-173.4,0.00014821,2]
[404238575,1769991033087,-161.94,0.00014823,2]
[404238576,1769991033099,-330.0,0.00014835,2]
[404238577,1769991033109,-260.09,0.00014846,2]
[404238578,1769991033123,-1845.0,0.0001488,2]
[404238579,1769991033132,-1083.0,0.00014909,2]
[404238580,1769991033141,-361.09597745,0.00014921,2]
[404238582,1769991033151,-339.61437757,0.00014958,2]
[404238584,1769991033160,-150.0,0.00014963,2]
[404238586,1769991033169,-9638.24707743,0.00014964,2]
[404238588,1769991033179,-14512.31615773,0.00014964,2]
[404238590,1769991033188,-250.0,0.00014976,2]
[404238592,1769991033197,-180.12103972,0.00014993,2]
[404238594,1769991033206,-250.0,0.00015,2]
[404238596,1769991033215,-151.0,0.00015,2]
[404238598,1769991033225,-316.57133444,0.00015002,2]
[404238601,1769991033234,-500.0,0.00015002,2]
[404238604,1769991033243,-420.70723809,0.00015002,2]
[404238608,1769991033253,-194.49506666,0.00015002,2]
[404238612,1769991033262,-256.24750777,0.00015002,2]
[404238616,1769991033272,-241.15360287,0.00015002,2]
[404238619,1769991033281,-500.0,0.00015002,2]
[404238622,1769991033290,-500.0,0.00015002,2]
[404238624,1769991033299,-500.0,0.00015002,2]
[404238626,1769991033308,-500.0,0.00015002,2]
[404238628,1769991033317,-500.0,0.00015002,2]
[404238630,1769991033326,-602.19381708,0.00015002,2]
[404238632,1769991033335,-500.0,0.00015002,2]
[404238634,1769991033344,-500.0,0.00015002,2]
[404238636,1769991033354,-500.0,0.00015002,2]
[404238638,1769991033363,-500.0,0.00015002,2]
[404238640,1769991033375,-500.0,0.00015002,2]
[404238642,1769991033384,-500.0,0.00015002,2]
[404238644,1769991033392,-500.0,0.00015002,2]
[404238646,1769991033402,-500.0,0.00015002,2]
[404238648,1769991033411,-500.0,0.00015002,2]
[404238650,1769991033420,-500.0,0.00015002,2]
[404238652,1769991033429,-500.0,0.00015002,2]
[404238654,1769991033438,-500.0,0.00015002,2]
[404238656,1769991033447,-500.0,0.00015002,2]
[404238658,1769991033455,-353.13418854,0.00015002,2]
[404238660,1769991033465,-9947.0,0.00015003,2]
[404238662,1769991033474,-242676.40269833,0.00015003,2]
[404238664,1769991033485,-4443.93547762,0.00015003,2]
[404238666,1769991033495,-4840.66892185,0.00015003,2]
[404238668,1769991033506,-414.63000001,0.00015003,2]
[404238768,1769991037943,-979.26347555,0.00014964,2]
[404238769,1769991037953,-2111.17652445,0.00015003,2]
[404238770,1769991037968,-821.83763151,0.00015003,2]
[404238771,1769991037979,-2542.91899349,0.00015003,2]
[404238772,1769991037990,-1187.75083997,0.00015003,2]
[404238773,1769991038070,-146818.5181856,0.00015003,2]
[404238774,1769991038081,-558.38385669,0.00015003,2]
[404238775,1769991038092,-401.616215,0.00015003,2]
[404238777,1769991040140,-2090.40897658,0.00015003,2]
[404238778,1769991040151,-5102.3890111,0.00015003,2]
[404238779,1769991040163,-7268.00672097,0.00015003,2]
[404238780,1769991040174,-25278.00289051,0.00015003,2]
[404238781,1769991040185,-1852717.98646506,0.00015003,2]
[404238782,1769991040336,-3950.60752974,0.00015003,2]
[404238783,1769991040448,-547.23973848,0.00015003,2]
[404238784,1769991040477,-373.5644,0.00015003,2]
[404238785,1769991040488,-395.472,0.00015003,2]
[404238786,1769991040499,-857.81402166,0.00015003,2]
[404238787,1769991040515,-4233.18646971,0.00015003,2]
[404238788,1769991040534,-405.07917987,0.00015003,2]
[404238791,1769991046766,-2020.869312,0.00015003,2]
[404238792,1769991046991,-300.57795713,0.00015003,2]
[404238793,1769991047070,-48403.69094595,0.00015003,2]
[404238852,1769991500968,4761.0,0.00024,90]
[404238854,1769991555980,500.0,0.000132,2]
[404238855,1769991572767,5000.0,0.00022,120]
[404238856,1769991572798,6556.36983702,0.00022,120]
[404238857,1769991600953,500.0,0.00010281,2]
[404238858,1769991616759,2754.62917349,0.00012849,2]
[404238859,1769991616798,184.44067477,0.00012849,2]
[404238860,1769991616836,1251.80770273,0.00012849,2]
[404238861,1769991617461,378.38431742,0.00012849,2]
[404238862,1769991671459,158973.94253235,0.00021,120]
[404238867,1769992029007,200.0,0.000146,5]
[404238869,1769992031115,400.0,0.000147,5]
[404238870,1769992033209,600.0,0.000148,5]
[404238871,1769992035311,900.0,0.000149,5]
[404238884,1769992146082,-258.0,0.00013199,2]
[404238885,1769992146103,-352.80562425,0.00013996,2]
[404238901,1769992232192,-83.93797901,0.00013996,2]
[404238902,1769992232202,-1852.42,0.00014097,2]
[404238903,1769992232212,-2041.45,0.00014218,2]
[404238904,1769992232224,-1000.0,0.00014234,2]
[404238905,1769992232234,-200.0,0.00014246,2]
[404238906,1769992232244,-879.51,0.00014253,2]
[404238907,1769992232254,-169.91,0.00014315,2]
[404238908,1769992232265,-1200.0,0.00014372,2]
[404238909,1769992232276,-300.0,0.00014372,2]
[404238910,1769992232287,-500.0,0.00014373,2]
[404238912,1769992232297,-327.74562474,0.00014373,2]
[404238914,1769992232306,-508.66720141,0.00014373,2]
[404238916,1769992232315,-60.09081154,0.00014373,2]
[404238919,1769992232327,-274.34510366,0.00014373,2]
[404238921,1769992232340,-165.5640848,0.00014373,2]
[404238923,1769992232349,-2500.0,0.00014409,2]
[404238926,1769992232358,-195.0,0.00014409,2]
[404238928,1769992232367,-300.0,0.00014409,2]
[404238930,1769992232376,-250.0,0.00014409,2]
[404238932,1769992232385,-195.0,0.00014409,2]
[404238934,1769992232394,-300.0,0.00014409,2]
[404238936,1769992232403,-500.0,0.00014575,2]
[404238937,1769992232414,-150.0,0.00014693,2]
[404238939,1769992232423,-180.12103973,0.00014693,2]
[404238941,1769992232432,-3842.28156226,0.00014694,2]
[404238944,1769992232444,-5642.54708293,0.00014694,2]
[404238946,1769992232453,-13497.12657807,0.00014694,2]
[404238948,1769992232462,-816.0528963,0.00014694,2]
[404238949,1769992232472,-588.0,0.00014697,2]
[404238950,1769992232481,-586.14654666,0.00014702,2]
[404238952,1769992232495,-168.80752201,0.00014702,2]
[404238955,1769992232509,-179.37325544,0.00014702,2]
[404238957,1769992232519,-500.0,0.00014702,2]
[404238959,1769992232528,-500.0,0.00014702,2]
[404238961,1769992232538,-545.77744126,0.00014702,2]
[404238963,1769992232547,-500.0,0.00014702,2]
[404238965,1769992232556,-64999.39066552,0.00014703,2]
[404238974,1769992238341,-984.20333733,0.00014703,2]
[404238975,1769992238714,-180011.57284729,0.00014703,2]
[404238976,1769992238726,-539.93551002,0.00014703,2]
[404238981,1769992240207,-910.21948755,0.00014703,2]
[404238982,1769992240498,-1852717.98646506,0.00014703,2]
[404238983,1769992240513,-1174.18282579,0.00014703,2]
[404238984,1769992240611,-632.12874861,0.00014703,2]
[404238985,1769992240622,-299.58021624,0.00014703,2]
[404239006,1769992245540,-1119.65292951,0.00014694,2]
[404239007,1769992245552,-292.17596855,0.00014694,2]
[404239008,1769992245562,-381.12403145,0.00014703,2]
[404239009,1769992245654,-168257.44106417,0.00014703,2]
[404239042,1769992246436,-2500.0,0.00014603,2]
[404239043,1769992246445,-10338.09722876,0.00014703,2]
[404239044,1769992246592,-10405.85651666,0.00014703,2]
[404239081,1769992572755,1004.6,0.00011233,2]
[404239082,1769992683166,1135.16674727,0.00014593,5]
[404239119,1769993432202,-170.407755,0.00013223,2]
[404239121,1769993432213,-158.33608544,0.0001329,2]
[404239122,1769993432224,-166.66,0.00013371,2]
[404239123,1769993432234,-300.0,0.00013384,2]
[404239124,1769993432244,-300.0,0.00013384,2]
[404239125,1769993432253,-47.96497456,0.00013384,2]
[404239126,1769993432266,-303.28202502,0.00013384,2]
[404239127,1769993432284,-848.75300042,0.00013384,2]
[404239128,1769993432295,-1136.07186331,0.00013385,2]
[404239129,1769993432306,-4625.7895929,0.00013385,2]
[404239130,1769993432318,-8040.70854379,0.00013385,2]
[404239131,1769993432328,-236.803405,0.0001339,2]
[404239132,1769993432338,-150.0,0.00013501,2]
[404239133,1769993432348,-500.0,0.00013556,2]
[404239134,1769993432357,-845.33,0.00013621,2]
[404239135,1769993432367,-209.46,0.0001364,2]
[404239136,1769993432376,-166.66,0.00013653,2]
[404239137,1769993432386,-200.0,0.00013699,2]
[404239138,1769993432395,-158.33608542,0.00013781,2]
[404239139,1769993432405,-166.66,0.00013934,2]
[404239140,1769993432415,-150.00000569,0.00014041,2]
[404239141,1769993432424,-219.0,0.00014048,2]
[404239142,1769993432433,-530.0,0.00014066,2]
[404239143,1769993432443,-1897.0,0.00014129,2]
[404239144,1769993432452,-511.76989175,0.00014157,2]
[404239145,1769993432462,-968.05,0.000142,2]
[404239147,1769993432471,-722.69,0.000142,2]
[404239148,1769993432483,-179.8,0.00014214,2]
[404239149,1769993432494,-166.66,0.00014216,2]
[404239150,1769993432505,-500.0,0.00014219,2]
[404239151,1769993432515,-265.84,0.00014223,2]
[404239152,1769993432524,-158.33608542,0.00014272,2]
[404239153,1769993432533,-4469.0833,0.00014274,2]
[404239154,1769993432543,-1120.03,0.000143,2]
[404239155,1769993432556,-150.0,0.000143,2]
[404239156,1769993432569,-150.0,0.000143,2]
[404239157,1769993432578,-3057.66087264,0.00014301,2]
[404239158,1769993432590,-355.25531606,0.00014301,2]
[404239159,1769993432612,-500.0,0.00014301,2]
[404239160,1769993432622,-500.0,0.00014301,2]
[404239161,1769993432633,-500.0,0.00014301,2]
[404239162,1769993432642,-500.0,0.00014301,2]
[404239163,1769993432651,-500.0,0.00014301,2]
[404239164,1769993432661,-500.0,0.00014301,2]
[404239165,1769993432671,-172.89045561,0.00014301,2]
[404239166,1769993432685,-327.10954439,0.00014301,2]
[404239167,1769993432695,-489.17378897,0.00014301,2]
[404239168,1769993432708,-10.82621103,0.00014301,2]
[404239169,1769993432719,-500.0,0.00014301,2]
[404239170,1769993432730,-500.0,0.00014301,2]
[404239171,1769993432741,-319.17378897,0.00014301,2]
[404239172,1769993432755,-180.82621103,0.00014301,2]
[404239173,1769993432764,-174.84372622,0.00014301,2]
[404239174,1769993432776,-325.15627378,0.00014301,2]
[404239175,1769993432785,-207.67058303,0.00014301,2]
[404239176,1769993432797,-292.32941697,0.00014301,2]
[404239177,1769993432806,-500.0,0.00014301,2]
[404239178,1769993432818,-500.0,0.00014301,2]
[404239179,1769993432827,-500.0,0.00014301,2]
[404239180,1769993432837,-500.0,0.00014301,2]
[404239181,1769993432846,-211.13188363,0.00014301,2]
[404239182,1769993432858,-288.86811637,0.00014301,2]
[404239183,1769993432868,-56.6496905,0.00014301,2]
[404239184,1769993432879,-443.3503095,0.00014301,2]
[404239185,1769993432889,-500.0,0.00014301,2]
[404239186,1769993432898,-500.0,0.00014301,2]
[404239187,1769993432907,-500.0,0.00014301,2]
[404239188,1769993432917,-500.0,0.00014301,2]
[404239189,1769993432926,-238.75756904,0.00014301,2]
[404239190,1769993432936,-500.0,0.00014311,2]
[404239191,1769993432945,-14882.93052762,0.00014311,2]
[404239203,1769993438313,-1697.14863851,0.00014311,2]
[404239204,1769993438325,-188.74513068,0.00014311,2]
[404239205,1769993438335,-237.77321944,0.00014311,2]
[404239206,1769993438345,-17613.49425126,0.00014311,2]
[404239207,1769993438355,-1727.09867745,0.00014311,2]
[404239208,1769993438365,-500.0,0.00014373,2]
[404239209,1769993438374,-500.0,0.00014373,2]
[404239210,1769993438384,-500.0,0.00014373,2]
[404239211,1769993438393,-500.0,0.00014373,2]
[404239212,1769993438403,-544.91692471,0.00014373,2]
[404239213,1769993438412,-500.0,0.00014373,2]
[404239214,1769993438422,-500.0,0.00014373,2]
[404239215,1769993438431,-500.0,0.00014373,2]
[404239216,1769993438441,-500.0,0.00014373,2]
[404239217,1769993438450,-542.96864497,0.00014373,2]
[404239218,1769993438459,-500.0,0.00014373,2]
[404239219,1769993438469,-500.0,0.00014373,2]
[404239220,1769993438479,-500.56196745,0.00014373,2]
[404239221,1769993438488,-500.4647933,0.00014373,2]
[404239222,1769993438498,-500.0,0.00014373,2]
[404239223,1769993438508,-500.0,0.00014373,2]
[404239224,1769993438517,-500.0,0.00014373,2]
[404239225,1769993438527,-500.0,0.00014373,2]
[404239226,1769993438536,-545.47745705,0.00014373,2]
[404239227,1769993438546,-500.0,0.00014373,2]
[404239228,1769993438557,-500.0,0.00014373,2]
[404239229,1769993438567,-232.68889938,0.00014374,2]
[404239230,1769993438576,-2237.0,0.00014384,2]
[404239231,1769993438586,-619.58731201,0.00014391,2]
[404239232,1769993438598,-624.34738419,0.00014397,2]
[404239233,1769993438610,-500.0,0.000144,2]
[404239234,1769993438620,-500.0,0.000144,2]
[404239235,1769993438632,-448.17762938,0.000144,2]
[404239236,1769993438641,-500.0,0.000144,2]
[404239237,1769993438650,-500.0,0.000144,2]
[404239238,1769993438660,-402.61062534,0.000144,2]
[404239239,1769993438669,-410.30258266,0.000144,2]
[404239240,1769993438678,-227.30860458,0.000144,2]
[404239241,1769993438687,-2900000.0,0.00014401,2]
[404239242,1769993438697,-344.98,0.00014411,2]
[404239243,1769993438707,-166.66,0.00014497,2]
[404239244,1769993438716,-623.44373258,0.00014501,2]
[404239245,1769993438726,-151.95874798,0.00014518,2]
[404239246,1769993438735,-500.0,0.00014576,2]
[404239247,1769993438745,-500.0,0.00014576,2]
[404239248,1769993438754,-500.0,0.00014576,2]
[404239249,1769993438764,-500.0,0.00014576,2]
[404239250,1769993438774,-500.0,0.00014576,2]
[404239251,1769993438783,-500.0,0.00014576,2]
[404239252,1769993438793,-500.0,0.00014576,2]
[404239253,1769993438802,-500.0,0.00014576,2]
[404239254,1769993438811,-500.0,0.00014576,2]
[404239255,1769993438821,-500.0,0.00014576,2]
[404239256,1769993438831,-500.0,0.00014576,2]
[404239257,1769993438840,-500.0,0.00014576,2]
[404239258,1769993438850,-151.0,0.00014576,2]
[404239259,1769993438859,-590.18945618,0.00014576,2]
[404239260,1769993438869,-151.0,0.00014576,2]
[404239261,1769993438879,-200.0,0.00014576,2]
[404239262,1769993438889,-151.0,0.00014576,2]
[404239263,1769993438898,-151.0,0.00014576,2]
[404239264,1769993438908,-151.0,0.00014576,2]
[404239265,1769993438918,-151.0,0.00014576,2]
[404239266,1769993438927,-500.0,0.00014576,2]
[404239267,1769993438936,-500.0,0.00014576,2]
[404239268,1769993438945,-500.0,0.00014576,2]
[404239269,1769993438955,-151.0,0.00014576,2]
[404239270,1769993438965,-500.0,0.00014576,2]
[404239271,1769993438974,-151.0,0.00014576,2]
[404239272,1769993438983,-500.0,0.00014576,2]
[404239273,1769993438993,-151.0,0.00014576,2]
[404239274,1769993439006,-500.0,0.00014576,2]
[404239275,1769993439016,-151.0,0.00014576,2]
[404239276,1769993439025,-151.0,0.00014576,2]
[404239277,1769993439035,-151.0,0.00014576,2]
[404239278,1769993439044,-500.0,0.00014576,2]
[404239279,1769993439054,-151.0,0.00014576,2]
[404239280,1769993439063,-500.0,0.00014576,2]
[404239281,1769993439074,-151.0,0.00014576,2]
[404239282,1769993439084,-500.0,0.00014576,2]
[404239283,1769993439093,-151.0,0.00014576,2]
[404239284,1769993439103,-500.0,0.00014576,2]
[404239285,1769993439112,-151.0,0.00014576,2]
[404239286,1769993439121,-500.0,0.00014576,2]
[404239287,1769993439130,-200.0,0.00014576,2]
[404239288,1769993439139,-169.316,0.00014584,2]
[404239289,1769993439149,-1895.727,0.00014584,2]
[404239290,1769993439158,-500.0,0.00014593,2]
[404239291,1769993439167,-500.0,0.00014593,2]
[404239292,1769993439176,-500.0,0.00014593,2]
[404239293,1769993439186,-500.0,0.00014593,2]
[404239294,1769993439195,-500.0,0.00014593,2]
[404239295,1769993439204,-500.0,0.00014593,2]
[404239296,1769993439214,-500.0,0.00014593,2]
[404239297,1769993439223,-500.0,0.00014593,2]
[404239298,1769993439233,-500.0,0.00014593,2]
[404239299,1769993439242,-500.0,0.00014593,2]
[404239300,1769993439251,-500.0,0.00014593,2]
[404239301,1769993439260,-500.0,0.00014593,2]
[404239302,1769993439270,-250.0,0.00014594,2]
[404239303,1769993439279,-4350.89113284,0.00014594,2]
[404239304,1769993439288,-2314.0,0.000146,2]
[404239305,1769993439297,-481.89509143,0.00014601,2]
[404239306,1769993439307,-10000.0,0.00014601,2]
[404239307,1769993439317,-33283.9349,0.00014603,2]
[404239308,1769993439326,-322.6107,0.00014618,2]
[404239309,1769993439336,-721.12765535,0.00014618,2]
[404239310,1769993439346,-500.0,0.00014618,2]
[404239311,1769993439355,-209.40437684,0.00014618,2]
[404239312,1769993439364,-500.0,0.00014618,2]
[404239313,1769993439374,-174.61919141,0.00014618,2]
[404239314,1769993439387,-500.0,0.00014618,2]
[404239315,1769993439396,-500.0,0.00014618,2]
[404239316,1769993439406,-500.0,0.00014618,2]
[404239317,1769993439416,-500.0,0.00014618,2]
[404239318,1769993439426,-500.0,0.00014618,2]
[404239319,1769993439435,-500.0,0.00014618,2]
[404239320,1769993439444,-500.0,0.00014618,2]
[404239321,1769993439453,-250.0,0.00014618,2]
[404239322,1769993439463,-500.0,0.00014618,2]
[404239323,1769993439472,-500.0,0.00014618,2]
[404239324,1769993439482,-250.0,0.00014618,2]
[404239325,1769993439492,-250.0,0.00014618,2]
[404239326,1769993439502,-250.0,0.00014618,2]
[404239327,1769993439510,-250.0,0.00014618,2]
[404239328,1769993439519,-250.0,0.00014618,2]
[404239329,1769993439528,-250.0,0.00014618,2]
[404239330,1769993439537,-250.0,0.00014618,2]
[404239331,1769993439546,-250.0,0.00014618,2]
[404239332,1769993439557,-250.0,0.00014618,2]
[404239333,1769993439568,-250.0,0.00014618,2]
[404239334,1769993439577,-250.0,0.00014618,2]
[404239335,1769993439590,-250.0,0.00014618,2]
[404239336,1769993439602,-250.0,0.00014618,2]
[404239337,1769993439613,-250.0,0.00014618,2]
[404239338,1769993439624,-250.0,0.00014618,2]
[404239339,1769993439635,-250.0,0.00014618,2]
[404239340,1769993439645,-250.0,0.00014618,2]
[404239341,1769993439654,-250.0,0.00014618,2]
[404239342,1769993439664,-250.0,0.00014618,2]
[404239343,1769993439674,-578.20924308,0.00014618,2]
[404239344,1769993439683,-250.0,0.00014618,2]
[404239345,1769993439692,-250.0,0.00014618,2]
[404239346,1769993439703,-500.0,0.00014618,2]
[404239347,1769993439713,-500.0,0.00014618,2]
[404239348,1769993439723,-500.0,0.00014618,2]
[404239349,1769993439733,-500.0,0.00014618,2]
[404239350,1769993439743,-500.0,0.00014618,2]
[404239351,1769993439752,-500.0,0.00014618,2]
[404239352,1769993439761,-500.0,0.00014618,2]
[404239353,1769993439771,-250.0,0.00014618,2]
[404239354,1769993439785,-500.0,0.00014618,2]
[404239355,1769993439796,-250.0,0.00014618,2]
[404239356,1769993439806,-500.0,0.00014618,2]
[404239357,1769993439817,-250.0,0.00014618,2]
[404239358,1769993439827,-250.0,0.00014618,2]
[404239359,1769993439836,-500.0,0.00014618,2]
[404239360,1769993439847,-250.0,0.00014618,2]
[404239361,1769993439858,-500.0,0.00014618,2]
[404239362,1769993439867,-250.0,0.00014618,2]
[404239363,1769993439879,-250.0,0.00014618,2]
[404239364,1769993439890,-250.0,0.00014618,2]
[404239365,1769993439900,-151.0,0.00014618,2]
[404239366,1769993439910,-250.0,0.00014618,2]
[404239367,1769993439921,-500.0,0.00014618,2]
[404239368,1769993439932,-151.0,0.00014618,2]
[404239369,1769993439942,-250.0,0.00014618,2]
[404239370,1769993439950,-500.0,0.00014618,2]
[404239371,1769993439959,-151.0,0.00014618,2]
[404239372,1769993439969,-250.0,0.00014618,2]
[404239373,1769993439981,-500.0,0.00014618,2]
[404239374,1769993439991,-151.0,0.00014618,2]
[404239375,1769993440000,-500.0,0.00014618,2]
[404239376,1769993440011,-500.0,0.00014618,2]
[404239377,1769993440021,-151.0,0.00014618,2]
[404239378,1769993440030,-500.0,0.00014618,2]
[404239379,1769993440040,-151.0,0.00014618,2]
[404239380,1769993440050,-500.0,0.00014618,2]
[404239381,1769993440060,-151.0,0.00014618,2]
[404239382,1769993440070,-250.0,0.00014618,2]
[404239383,1769993440080,-500.0,0.00014618,2]
[404239384,1769993440089,-250.0,0.00014618,2]
[404239385,1769993440099,-500.0,0.00014618,2]
[404239386,1769993440109,-151.0,0.00014618,2]
[404239387,1769993440118,-250.0,0.00014618,2]
[404239388,1769993440127,-500.0,0.00014618,2]
[404239389,1769993440137,-151.0,0.00014618,2]
[404239390,1769993440146,-250.0,0.00014618,2]
[404239391,1769993440156,-500.0,0.00014618,2]
[404239392,1769993440165,-151.0,0.00014618,2]
[404239393,1769993440174,-500.0,0.00014618,2]
[404239394,1769993440184,-250.0,0.00014618,2]
[404239395,1769993440193,-151.0,0.00014618,2]
[404239397,1769993440203,-500.0,0.00014618,2]
[404239399,1769993440212,-250.0,0.00014618,2]
[404239401,1769993440222,-500.0,0.00014618,2]
[404239403,1769993440232,-250.0,0.00014618,2]
[404239404,1769993440242,-500.0,0.00014618,2]
[404239405,1769993440252,-250.0,0.00014618,2]
[404239406,1769993440262,-231.86721235,0.00014618,2]
[404239407,1769993440272,-500.0,0.00014618,2]
[404239408,1769993440281,-250.0,0.00014618,2]
[404239409,1769993440291,-209.40437684,0.00014618,2]
[404239410,1769993440301,-500.0,0.00014618,2]
[404239411,1769993440311,-250.0,0.00014618,2]
[404239412,1769993440322,-500.0,0.00014618,2]
[404239413,1769993440331,-250.0,0.00014618,2]
[404239414,1769993440341,-500.0,0.00014618,2]
[404239415,1769993440351,-500.0,0.00014618,2]
[404239416,1769993440360,-500.0,0.00014618,2]
[404239417,1769993440370,-500.0,0.00014618,2]
[404239418,1769993440379,-500.0,0.00014618,2]
[404239419,1769993440389,-500.0,0.00014618,2]
[404239420,1769993440398,-500.0,0.00014618,2]
[404239421,1769993440408,-500.0,0.00014618,2]
[404239422,1769993440417,-500.0,0.00014618,2]
[404239423,1769993440426,-500.0,0.00014618,2]
[404239424,1769993440436,-500.0,0.00014618,2]
[404239425,1769993440445,-500.0,0.00014618,2]
[404239426,1769993440454,-277.35679052,0.00014618,2]
[404239427,1769993440464,-500.0,0.00014618,2]
[404239428,1769993440473,-500.0,0.00014618,2]
[404239429,1769993440483,-500.0,0.00014618,2]
[404239430,1769993440493,-500.0,0.00014618,2]
[404239431,1769993440504,-500.0,0.00014618,2]
[404239432,1769993440515,-500.0,0.00014618,2]
[404239433,1769993440524,-500.0,0.00014618,2]
[404239434,1769993440534,-500.0,0.00014618,2]
[404239435,1769993440545,-500.0,0.00014618,2]
[404239436,1769993440556,-151.0,0.00014618,2]
[404239437,1769993440569,-500.0,0.00014618,2]
[404239438,1769993440579,-500.0,0.00014618,2]
[404239439,1769993440588,-500.0,0.00014618,2]
[404239440,1769993440599,-500.0,0.00014618,2]
[404239441,1769993440610,-500.0,0.00014618,2]
[404239442,1769993440619,-1428.38747117,0.00014618,2]
[404239443,1769993440631,-209.40437684,0.00014618,2]
[404239444,1769993440640,-859.80605061,0.00014618,2]
[404239445,1769993440649,-195.0,0.00014619,2]
[404239446,1769993440658,-504.0,0.00014658,2]
[404239447,1769993440667,-217.15233878,0.00014673,2]
[404239448,1769993440676,-235.23511916,0.00014694,2]
[404239449,1769993440686,-6403.21720259,0.00014694,2]
[404239450,1769993440695,-3286.1281269,0.00014694,2]
[404239451,1769993440704,-1153.93461934,0.00014694,2]
[404239452,1769993440713,-1722.44010177,0.00014694,2]
[404239453,1769993440723,-17613.49425124,0.00014698,2]
[404239454,1769993440734,-16580.07916607,0.00014699,2]
[404239455,1769993440743,-6660.54141683,0.000147,2]
[404239456,1769993440754,-500.0,0.000147,2]
[404239457,1769993440764,-36874.8060389,0.00014701,2]
[404239458,1769993440775,-66935.0008592,0.00014701,2]
[404239459,1769993440786,-2925.5109305,0.00014701,2]
[404239460,1769993440795,-212258.4085988,0.00014701,2]
[404239461,1769993440807,-72556.6098675,0.00014701,2]
[404239462,1769993440818,-1112.55813726,0.00014702,2]